bitfinex-derivatives/quotes_ETHF0:USTF0_20250726
["timestamp","ask_amount","ask_price","bid_price","bid_amount"]
[1753498384797,0.02202314,3745.6,3744.0,2.8230945]
[1753498385003,0.9046,3746.7,3745.6,0.0016]
[1753498385208,2.86077,3746.7,3746.6,3.2096]
[1753498385403,6.06856686,3746.7,3746.6,3.2096]
[1753498385707,6.06856686,3746.7,3746.6,15.695]
[1753498385901,2.3271,3746.7,3746.6,15.695]
[1753498386109,0.9046,3746.7,3746.6,15.695]
[1753498386302,1.43827,3746.7,3746.6,15.695]
[1753498387308,1.43827,3746.7,3746.6,16.03679559]
[1753498387807,1.43827,3746.7,3746.6,16.25239559]
[1753498390302,9.81486686,3746.7,3746.6,1.49165559]
[1753498390504,9.81486686,3746.7,3744.6,1.70024504]
[1753498390505,1.3001,3746.3,3744.2,0.20109066]
[1753498390697,1.3001,3745.0,3744.9,3.2078]
[1753498390902,4.12161,3745.0,3744.9,15.6468]
[1753498391101,7.32940686,3745.0,3744.9,15.6468]
[1753498391595,7.32940686,3745.0,3744.9,15.6288]
[1753498392409,7.32940686,3745.0,3744.9,15.6248]
[1753498392604,7.32940686,3745.0,3744.9,2.9898]
[1753498392804,7.32940686,3745.0,3744.9,15.4188]
[1753498393203,7.32940686,3745.0,3744.9,2.9898]
[1753498393404,7.32940686,3745.0,3744.9,15.4148]
[1753498393805,1.39898,3745.3,3745.0,2.4706]
[1753498394001,0.8651,3745.3,3745.2,1.5597]
[1753498394302,0.53383,3745.7,3745.2,0.53388]
[1753498394503,0.53383,3745.7,3745.6,4.7675]
[1753498394704,0.8651,3745.8,3745.6,17.1745]
[1753498394903,0.53381,3745.8,3745.7,0.9109]
[1753498395113,0.2,3745.9,3745.8,2.4706]
[1753498395612,0.2,3745.9,3745.8,3.1672]
[1753498398114,0.73378,3745.9,3745.8,3.1672]
[1753498398713,0.2,3745.9,3745.8,3.1672]
[1753498398906,0.8651,3746.8,3745.8,5.0]
[1753498399105,4.80578857,3746.7,3745.8,0.4776]
[1753498399311,4.07289686,3746.7,3746.6,4.7366]
[1753498399613,0.8651,3746.7,3746.6,40.6422]
[1753498400011,0.8651,3746.7,3746.6,41.17588]
[1753498401013,0.8651,3746.7,3746.6,42.08678]
[1753498401215,0.8651,3746.7,3746.6,41.17588]
[1753498401411,2.2876,3746.7,3746.6,41.17588]
[1753498401811,0.8651,3746.7,3746.6,41.17588]
[1753498403017,2.2876,3746.7,3746.6,41.17588]
[1753498403217,3.5877,3746.7,3746.6,41.17588]
[1753498404017,3.5877,3746.7,3746.6,41.50955322]
[1753498405216,6.0534,3746.7,3746.6,43.07315322]
[1753498406519,6.0534,3746.7,3746.6,43.07323201]
[1753498409015,6.0534,3746.7,3746.6,39.56608]
[1753498409220,6.0534,3746.7,3746.6,39.89999067]
[1753498409614,6.0534,3746.7,3746.6,39.56608]
[1753498409819,6.0534,3746.7,3746.6,39.90000058]
[1753498410015,6.0534,3746.7,3746.6,39.56608]
[1753498410317,6.0534,3746.7,3746.6,39.90000484]
[1753498411223,9.26119686,3746.7,3746.6,39.37740484]
[1753498411927,5.53459686,3746.7,3746.6,41.81710484]
[1753498412322,9.26119686,3746.7,3746.6,41.81710484]
[1753498412624,6.0534,3746.7,3746.6,42.29470484]
[1753498413823,2.4657,3747.1,3747.0,1.5976]
[1753498414017,3.20909008,3747.1,3747.0,17.89295484]
[1753498414327,6.41688694,3747.1,3747.0,17.89295484]
[1753498414516,10.00458694,3747.1,3747.0,17.89295484]
[1753498415827,10.00458694,3747.1,3747.0,17.55903]
[1753498416027,10.00458694,3747.1,3747.0,17.89303717]
[1753498416830,10.00458694,3747.1,3747.0,19.42853717]
[1753498417132,0.018,3747.3,3747.2,2.1716]
[1753498417334,5.62946709,3747.3,3747.2,5.40330717]
[1753498417521,6.98736709,3747.3,3747.2,17.56430717]
[1753498417724,4.43176709,3747.3,3747.2,17.56430717]
[1753498418429,6.98736709,3747.3,3747.2,17.56430717]
[1753498419033,6.2441,3747.3,3747.2,17.56430717]
[1753498419631,3.3644,3747.3,3747.2,17.56430717]
[1753498420329,4.8862,3747.3,3747.2,17.56430717]
[1753498420733,6.2441,3747.3,3747.2,16.67630717]
[1753498421730,0.018,3747.3,3747.2,17.56430717]
[1753498422133,0.9036,3747.3,3747.2,17.56430717]
[1753498423837,6.2441,3747.3,3747.2,16.62730717]
[1753498424337,6.98885303,3747.3,3747.2,16.6276472]
[1753498424538,6.2441,3747.3,3747.2,16.6276472]
[1753498425331,6.98921306,3747.3,3747.2,16.6276472]
[1753498426433,6.98939961,3747.3,3747.2,4.5156472]
[1753498426640,6.2441,3747.3,3747.2,16.5806472]
[1753498427034,6.98939867,3747.3,3747.2,16.5806472]
[1753498427240,6.2441,3747.3,3747.2,16.58116112]
[1753498427939,0.9036,3747.3,3747.2,17.46916112]
[1753498428139,2.3306,3747.3,3747.2,17.46916112]
[1753498428346,6.2441,3747.3,3747.2,17.46916112]
[1753498431037,6.2441,3747.3,3747.2,16.58116112]
[1753498432537,5.5405,3747.9,3747.8,1.12141]
[1753498432839,6.28575555,3747.9,3747.8,17.55807112]
[1753498433034,9.49355241,3747.9,3747.8,17.55807112]
[1753498433233,9.49355241,3747.9,3747.8,16.67007112]
[1753498433935,6.28575555,3747.9,3747.8,16.67007112]
[1753498434141,6.28575555,3747.9,3747.8,20.61447112]
[1753498434341,6.28575555,3747.9,3747.8,19.08447112]
[1753498434542,7.17135555,3747.9,3747.8,18.19437112]
[1753498435343,6.4261,3747.9,3747.8,18.19437112]
[1753498437245,6.4261,3747.9,3747.8,20.61447112]
[1753498437445,4.5067,3747.9,3747.8,20.61787112]
[1753498437645,1.0546,3747.9,3747.8,20.61787112]
[1753498437847,1.79931464,3747.9,3747.8,20.61787112]
[1753498438145,0.94471464,3747.9,3747.8,20.61787112]
[1753498438647,0.2,3747.9,3747.8,20.61787112]
[1753498441745,0.2,3747.9,3747.8,20.53887112]
[1753498441940,4.1826,3747.9,3747.8,8.61187112]
[1753498442141,7.17058951,3747.9,3747.8,6.18837112]
[1753498442346,10.37838637,3747.9,3747.8,4.07617112]
[1753498442740,10.37838637,3747.9,3747.8,15.99317112]
[1753498443438,10.37838637,3747.9,3747.8,4.07617112]
[1753498443640,10.37838637,3747.9,3747.8,15.98217112]
[1753498444348,10.37838637,3747.9,3747.8,16.57007112]
[1753498444544,10.37838637,3747.9,3747.8,4.66407112]
[1753498444749,10.37838637,3747.9,3747.8,39.61707112]
[1753498445044,10.37838637,3747.9,3747.8,41.97407112]
[1753498445244,9.63389686,3747.9,3747.8,41.97407112]
[1753498445446,10.3786308,3747.9,3747.8,41.97407112]
[1753498445844,9.63389686,3747.9,3747.8,41.97407112]
[1753498446349,9.63389686,3747.9,3747.8,41.97436958]
[1753498452650,5.392,3747.8,3746.7,17.5386]
[1753498452855,0.74524083,3747.7,3747.5,2.357]
[1753498453147,5.392,3747.8,3747.7,0.9324]
[1753498453344,6.13717019,3747.8,3747.7,5.36933]
[1753498453546,0.74517019,3747.8,3747.7,6.75663]
[1753498453746,0.2,3747.9,3747.8,3.01231]
[1753498454054,0.2,3747.9,3747.8,29.81861]
[1753498454556,0.94518304,3747.9,3747.8,29.81861]
[1753498455547,0.2,3747.9,3747.8,29.81861]
[1753498461959,0.2,3747.9,3747.8,30.14830916]
[1753498463657,0.2,3747.9,3747.8,41.94630916]
[1753498464057,0.2,3747.9,3747.8,41.61661]
[1753498464962,0.2,3747.9,3747.8,41.59761]
[1753498465159,0.94532161,3747.9,3747.8,41.59761]
[1753498465764,0.2,3747.9,3747.8,41.59761]
[1753498468162,0.94531934,3747.9,3747.8,41.59761]
[1753498469365,0.94931692,3747.9,3747.8,41.59761]
[1753498470367,0.94931692,3747.9,3747.8,29.81861]
[1753498470557,0.94931692,3747.9,3747.8,41.56861]
[1753498471262,0.94931692,3747.9,3747.8,41.55461]
[1753498472771,0.94931692,3747.9,3747.8,41.55261]
[1753498473871,0.94931692,3747.9,3747.8,29.81861]
[1753498474067,0.94931692,3747.9,3747.8,41.54261]
[1753498474973,0.95951692,3747.9,3747.8,41.54261]
[1753498475466,0.95951692,3747.9,3747.8,40.14631]
[1753498475661,0.95951692,3747.9,3747.8,3.8166]
[1753498475868,0.95951692,3747.9,3747.7,3.2078]
[1753498475869,0.0087,3747.8,3747.7,3.2078]
[1753498476172,0.0087,3747.8,3747.4,23.59157]
[1753498476173,0.0069,3747.5,3747.4,23.59157]
[1753498476372,0.0112,3747.5,3747.4,35.29457]
[1753498476561,0.75651934,3747.5,3747.4,35.29457]
[1753498476762,0.75651934,3747.5,3747.4,36.19507]
[1753498477969,0.75651934,3747.5,3747.4,24.49207]
[1753498478271,0.75651934,3747.5,3747.4,35.29457]
[1753498478473,0.75651934,3747.5,3747.4,34.761]
[1753498479068,0.75651934,3747.5,3747.2,0.53359]
[1753498479270,0.0112,3747.3,3747.1,23.059]
[1753498479472,1.29011934,3747.2,3747.1,23.059]
[1753498479772,0.54483,3747.0,3746.9,0.9005]
[1753498479974,0.54483,3747.0,3746.9,35.6425]
[1753498480181,1.29014934,3747.0,3746.9,35.6425]
[1753498480380,0.75651934,3747.0,3746.9,35.6425]
[1753498480679,1.29014934,3747.0,3746.9,35.6425]
[1753498481080,0.75651934,3747.0,3746.9,35.6425]
[1753498481579,0.75551934,3747.0,3746.9,37.67684]
[1753498481778,0.75551934,3747.0,3746.9,14.61484]
[1753498482474,0.75381934,3747.0,3746.9,18.45434]
[1753498482774,0.74531934,3747.0,3746.9,18.45434]
[1753498483080,0.54211,3747.2,3747.1,5.3492]
[1753498483279,0.54381,3747.2,3747.1,17.9127]
[1753498483478,0.7548157,3747.2,3747.1,18.44631]
[1753498483681,0.7446157,3747.2,3747.1,18.44631]
[1753498483877,0.0016,3747.4,3747.2,2.4869]
[1753498484078,0.0016,3747.4,3747.3,17.9057]
[1753498484273,0.74607267,3747.4,3747.3,18.43929]
[1753498484478,0.74447267,3747.4,3747.3,18.43929]
[1753498485173,0.74767267,3747.4,3747.3,18.44329]
[1753498485481,1.28824267,3747.4,3747.3,17.9037]
[1753498485677,0.75467267,3747.4,3747.3,18.43729]
[1753498486970,0.75467267,3747.4,3747.3,6.78329]
[1753498487278,0.75467267,3747.4,3747.3,18.43529]
[1753498488980,0.74447267,3747.4,3747.3,18.43529]
[1753498490080,0.74607267,3747.4,3747.3,18.43529]
[1753498490283,0.74447267,3747.4,3747.3,18.43529]
[1753498491681,0.74447267,3747.4,3747.3,6.2497]
[1753498491682,1.28824267,3747.4,3747.3,6.2497]
[1753498491879,0.75467267,3747.4,3747.3,17.8627]
[1753498492078,0.75467267,3747.4,3747.3,18.39629]
[1753498492784,1.28824267,3747.4,3747.3,6.2497]
[1753498493084,1.28824267,3747.4,3747.3,16.8746]
[1753498493284,1.28824267,3747.4,3747.3,17.8607]
[1753498493478,1.28824267,3747.4,3747.3,18.39429]
[1753498493678,1.28924267,3747.4,3747.3,0.9005]
[1753498493983,1.28924267,3747.4,3747.3,12.5035]
[1753498494484,1.28924267,3747.4,3747.3,0.9005]
[1753498494679,1.28924267,3747.4,3747.3,12.4985]
[1753498496483,0.54051,3747.1,3747.0,2.4012]
[1753498496783,1.28828267,3747.1,3747.0,13.9862]
[1753498496984,1.28828267,3747.1,3747.0,14.5981]
[1753498497683,0.20399758,3747.9,3747.7,2.4869]
[1753498497983,0.20399758,3747.9,3747.8,9.99101]
[1753498498181,0.20399758,3747.9,3747.8,21.0505]
[1753498498382,0.20399758,3747.9,3747.8,21.58401]
[1753498499283,0.20399758,3747.9,3747.8,44.64601]
[1753498500184,0.20399758,3747.9,3747.8,33.05301]
[1753498500389,0.20399758,3747.9,3747.8,44.63801]
[1753498501790,1.85379758,3747.9,3747.8,44.1045]
[1753498502094,1.85549758,3747.9,3747.8,44.1045]
[1753498502288,0.20399758,3747.9,3747.8,44.63801]
[1753498503094,1.85549758,3747.9,3747.8,44.1035]
[1753498503288,1.85549758,3747.9,3747.8,32.5195]
[1753498503484,2.38899758,3747.9,3747.8,42.7419]
[1753498503894,2.38899758,3747.9,3747.8,39.5341]
[1753498504092,2.38899758,3747.9,3747.8,40.8957]
[1753498504493,2.38449758,3747.9,3747.8,40.8957]
[1753498505195,2.38729758,3747.9,3747.8,40.8957]
[1753498505989,2.38729758,3747.9,3747.8,37.1445]
[1753498506592,2.38729758,3747.9,3747.8,38.6895]
[1753498507093,1.85379758,3747.9,3747.8,40.51511]
[1753498507396,2.38729758,3747.9,3747.8,39.9816]
[1753498507591,1.85379758,3747.9,3747.8,40.51511]
[1753498509696,2.58110653,3747.9,3747.8,40.51511]
[1753498509897,3.11460653,3747.9,3747.8,41.40511]
[1753498510290,3.11460653,3747.9,3747.8,40.8716]
[1753498510695,3.11460653,3747.9,3747.8,41.40511]
[1753498511094,2.58110653,3747.9,3747.8,41.40511]
[1753498511599,2.57830653,3747.9,3747.8,41.40511]
[1753498514301,3.11180653,3747.9,3747.8,40.8716]
[1753498514903,2.57830653,3747.9,3747.8,41.40511]
[1753498515094,3.11180653,3747.9,3747.8,40.8716]
[1753498515497,3.11180653,3747.9,3747.8,41.40511]
[1753498515698,3.11180653,3747.9,3747.8,40.8716]
[1753498516199,2.57830653,3747.9,3747.8,41.40511]
[1753498516702,3.11180653,3747.9,3747.8,41.40511]
[1753498516894,2.57830653,3747.9,3747.8,41.40511]
[1753498517302,3.11180653,3747.9,3747.8,41.40511]
[1753498517496,2.57830653,3747.9,3747.8,41.40511]
[1753498519300,2.57830653,3747.9,3747.8,38.87201]
[1753498524106,0.93130653,3747.9,3747.8,38.87201]
[1753498526804,0.93130653,3747.9,3747.8,42.07981]
[1753498527204,3.13500653,3747.9,3747.8,29.9653]
[1753498527507,3.13500653,3747.9,3747.8,41.5423]
[1753498527706,3.13500653,3747.9,3747.8,29.9653]
[1753498527902,0.93130653,3747.9,3747.8,4.6905]
[1753498528101,2.18227464,3748.6,3748.4,0.53343]
[1753498528304,2.80697464,3748.6,3748.5,14.3508]
[1753498528607,3.73297464,3748.6,3748.5,15.2279]
[1753498529207,2.2949,3748.6,3748.5,17.7351]
[1753498529407,2.2949,3748.6,3748.5,18.26851]
[1753498529808,2.2949,3748.6,3748.5,17.7351]
[1753498530305,2.8283,3748.6,3748.5,17.7351]
[1753498530907,3.7385,3748.6,3748.5,16.443]
[1753498531404,3.7385,3748.6,3748.5,16.442]
[1753498532003,3.7385,3748.6,3748.5,17.7341]
[1753498532502,2.2949,3748.6,3748.5,18.26751]
[1753498533606,2.8283,3748.6,3748.5,17.7341]
[1753498534409,2.2949,3748.6,3748.5,18.26751]
[1753498534611,2.8283,3748.6,3748.5,17.7341]
[1753498540315,2.62081135,3748.6,3748.5,17.7341]
[1753498540817,3.48661135,3748.6,3748.5,17.7341]
[1753498543810,4.21593623,3748.6,3748.5,17.7341]
[1753498544106,5.14683623,3748.6,3748.5,17.7341]
[1753498545010,5.14683623,3748.6,3748.5,6.1591]
[1753498545206,5.14683623,3748.6,3748.5,17.7261]
[1753498546214,5.14683623,3748.6,3748.5,6.1591]
[1753498546416,5.14683623,3748.6,3748.5,17.7261]
[1753498548317,5.14683623,3748.6,3748.5,6.1591]
[1753498548516,5.14683623,3748.6,3748.5,17.7241]
[1753498549117,5.14683623,3748.6,3748.5,2.4221]
[1753498549325,9.79271087,3748.6,3748.5,11.565]
[1753498550721,2.01643,3748.4,3748.3,4.9007]
[1753498551024,4.40974135,3748.4,3748.3,17.7636]
[1753498551222,4.40974135,3748.4,3748.3,6.1986]
[1753498551520,4.40974135,3748.4,3748.3,12.4771]
[1753498551912,3.69126,3748.2,3748.1,2.4403]
[1753498552116,8.34689623,3748.2,3748.1,14.0033]
[1753498552323,8.34689623,3748.2,3748.1,15.3012]
[1753498552623,8.34689623,3748.2,3748.1,5.3079]
[1753498552811,7.61757135,3748.2,3748.1,17.7616]
[1753498553017,1.25197135,3748.2,3748.1,6.1986]
[1753498553226,2.61307135,3748.2,3748.1,17.7616]
[1753498553426,3.47887135,3748.2,3748.1,17.7616]
[1753498553924,4.40977135,3748.2,3748.1,17.7616]
[1753498554520,7.61757135,3748.2,3748.1,17.7616]
[1753498554725,4.40977135,3748.2,3748.1,17.7616]
[1753498555027,7.61757135,3748.2,3748.1,17.7606]
[1753498556315,4.40977135,3748.2,3748.1,17.7606]
[1753498556520,7.61757135,3748.2,3748.1,17.7606]
[1753498556926,2.76041,3747.8,3747.7,5.2855]
[1753498557228,1.25202135,3747.8,3747.7,16.8465]
[1753498557422,1.25202135,3747.8,3747.7,17.7596]
[1753498559228,1.25202135,3747.8,3747.7,11.561]
[1753498559630,6.83983623,3747.8,3747.0,3.2078]
[1753498559826,6.83983623,3747.8,3745.8,0.19755196]
[1753498559827,3.2078,3747.2,3745.8,0.19755196]
[1753498560021,5.392,3748.8,3745.8,0.19755196]
[1753498560022,3.25425627,3748.3,3747.1,0.72932488]
[1753498560227,0.7189707,3748.2,3747.4,3.2078]
[1753498560427,0.7189707,3748.1,3747.5,23.059]
[1753498560622,0.7189707,3748.0,3747.5,34.67]
[1753498560829,0.7189707,3747.9,3747.8,3.2078]
[1753498561023,1.2524707,3747.9,3747.8,0.35469572]
[1753498561331,0.7189707,3747.9,3747.8,0.35469572]
[1753498561523,0.7189707,3747.9,3747.8,11.96269572]
[1753498562426,0.7189707,3747.9,3747.8,17.49620572]
[1753498563132,0.7189707,3747.9,3747.8,0.88820572]
[1753498563331,0.7189707,3747.9,3747.8,12.49220572]
[1753498563728,0.7189707,3747.9,3747.8,17.49220572]
[1753498565438,0.7189707,3747.9,3747.8,12.49220572]
[1753498565825,0.7189707,3747.9,3747.8,0.35469572]
[1753498566232,0.7189707,3747.9,3747.8,0.88820572]
[1753498566431,0.7189707,3747.9,3747.8,0.35469572]
[1753498566931,0.7189707,3747.9,3747.8,11.93169572]
[1753498567134,0.7189707,3747.9,3747.8,12.46520572]
[1753498567539,0.7189707,3747.9,3747.8,0.88820572]
[1753498567735,0.7189707,3747.9,3747.8,11.92569572]
[1753498568034,0.7189707,3747.9,3747.8,11.92369572]
[1753498568228,0.7189707,3747.9,3747.8,11.92169572]
[1753498568735,0.7189707,3747.9,3747.8,12.45420572]
[1753498569037,0.7189707,3747.9,3747.8,11.92069572]
[1753498570040,0.53348,3748.1,3747.8,11.92069572]
[1753498570240,1.24104061,3748.0,3747.9,0.35469572]
[1753498570436,0.70755061,3748.0,3747.9,0.35469572]
[1753498570741,0.70755061,3748.0,3747.9,0.35414378]
[1753498571130,1.24104061,3748.0,3747.9,11.91314378]
[1753498571334,0.70755061,3748.0,3747.9,11.91314378]
[1753498571736,1.24104061,3748.0,3747.9,11.91314378]
[1753498573739,1.24104061,3748.0,3747.9,0.35414378]
[1753498573940,1.24104061,3748.0,3747.9,11.91314378]
[1753498574343,1.24104061,3748.0,3747.9,0.35414378]
[1753498574644,1.24104061,3748.0,3747.9,11.91314378]
[1753498574838,1.24104061,3748.0,3747.9,11.91214378]
[1753498575443,4.44884061,3748.0,3747.9,11.91214378]
[1753498576434,4.44884061,3748.0,3747.9,11.558]
[1753498576639,4.44884061,3748.0,3747.9,0.35435556]
[1753498576836,4.44884061,3748.0,3747.9,11.91235556]
[1753498579444,4.44884061,3748.0,3747.9,11.558]
[1753498582744,3.91535061,3748.0,3747.9,12.0915]
[1753498583050,0.70755061,3748.0,3747.9,12.0915]
[1753498584246,0.70755061,3748.0,3747.9,0.5335]
[1753498584748,0.70755061,3748.0,3747.9,12.44478005]
[1753498586151,0.70755061,3748.0,3747.9,0.88778005]
[1753498586352,0.70755061,3748.0,3747.9,12.44478005]
[1753498587349,0.70755061,3748.0,3747.9,0.88778005]
[1753498587550,0.70755061,3748.0,3747.9,12.44378005]
[1753498589551,0.70755061,3748.0,3747.9,11.91028005]
[1753498589753,0.70755061,3748.0,3747.9,12.44378005]
[1753498590152,0.70755061,3748.0,3747.9,12.45448613]
[1753498590354,0.70755061,3748.0,3747.9,12.0895]
[1753498590554,1.24104061,3748.0,3747.9,0.5335]
[1753498590756,0.70755061,3748.0,3747.9,12.0885]
[1753498590951,0.70755061,3748.0,3747.5,23.059]
[1753498591157,1.24106061,3747.9,3747.7,0.53353]
[1753498591349,0.53354,3747.6,3747.5,23.059]
[1753498591546,0.53353,3747.7,3747.5,35.14756]
[1753498591751,0.53353,3747.7,3745.8,1.96e-06]
[1753498591752,1.4365812,3747.6,3745.8,1.96e-06]
[1753498591946,0.72932488,3745.9,3744.3,3.29341671]
[1753498592247,3.4154052,3747.5,3745.8,3.2078]
[1753498592445,3.4154052,3747.5,3744.4,11.94864983]
[1753498592446,1.43807464,3748.1,3747.4,3.93712488]
[1753498592646,3.2078,3748.9,3747.9,3.2078]
[1753498592647,0.53343,3748.5,3747.9,3.2078]
[1753498592954,3.2078,3748.6,3748.0,12.56864983]
[1753498593156,0.72932488,3748.4,3748.1,0.16564983]
[1753498593358,0.72932488,3748.4,3748.2,12.209]
[1753498594461,0.72932488,3748.4,3748.3,12.196]
[1753498595659,0.72932488,3748.4,3748.3,12.186]
[1753498596765,0.72932488,3748.4,3748.0,0.53348]
[1753498596963,0.72932488,3748.4,3748.1,12.17]
[1753498598367,1.26275488,3748.4,3748.1,12.17]
[1753498598670,1.26276488,3748.4,3748.1,12.17]
[1753498598868,1.26275488,3748.4,3748.1,12.17]
[1753498599068,0.72932488,3748.4,3748.1,12.17]
[1753498599867,0.72932488,3748.4,3748.2,12.137]
[1753498601465,1.26275488,3748.4,3748.2,12.137]
[1753498601669,0.53344,3748.3,3748.2,12.137]
[1753498604372,0.77633432,3748.3,3748.2,12.137]
[1753498605272,0.77633432,3748.3,3748.2,15.87826]
[1753498606273,0.77633432,3748.3,3748.2,15.3448]
[1753498606675,1.30977432,3748.3,3748.2,12.137]
[1753498606978,1.30977432,3748.3,3748.2,12.069]
[1753498607168,1.30977432,3748.3,3747.4,23.058]
[1753498607169,0.77633432,3748.3,3747.4,23.058]
[1753498607373,0.72932488,3747.7,3747.6,0.53354]
[1753498607571,1.5056592,3747.7,3747.6,0.53354]
[1753498607773,0.77633432,3747.7,3747.6,0.53354]
[1753498607973,0.77638187,3747.8,3747.6,0.53353]
[1753498608372,0.77638187,3747.8,3747.7,0.53353]
[1753498609071,0.77638187,3747.8,3747.7,12.59753]
[1753498609776,1.30989187,3747.8,3747.7,12.064]
[1753498610166,0.77638187,3747.8,3747.7,12.59753]
[1753498612976,1.30989187,3747.8,3747.7,12.064]
[1753498613370,1.30989187,3747.8,3747.7,12.59753]
[1753498614278,0.77638187,3747.8,3747.7,12.59753]
[1753498614777,0.7762606,3747.8,3747.7,15.80533]
[1753498615575,0.7762606,3747.8,3747.7,20.80533]
[1753498616378,0.7762606,3747.8,3747.7,8.74133]
[1753498616580,0.7762606,3747.8,3747.7,20.73333]
[1753498617374,6e-07,3747.8,3747.7,20.73333]
[1753498617580,3.2078,3748.9,3748.8,0.53337]
[1753498617780,3.2078,3748.9,3748.8,12.50637]
[1753498618173,3.2078,3748.9,3748.8,11.979]
[1753498618474,3.2078,3748.9,3748.8,12.51237]
[1753498618877,3.74116,3748.9,3748.8,11.979]
[1753498619977,0.53336,3748.9,3748.8,11.976]
[1753498620384,10.08706373,3749.0,3748.8,11.96]
[1753498620579,0.53343,3748.4,3748.3,3.2078]
[1753498620783,0.53346,3748.2,3747.9,0.5335]
[1753498620983,0.53346,3748.2,3748.0,11.957]
[1753498621385,0.53346,3748.2,3748.0,12.49048]
[1753498621587,0.53346,3748.2,3748.0,0.53348]
[1753498621785,0.53346,3748.2,3748.1,11.954]
[1753498622981,0.53346,3748.2,3748.1,12.48747]
[1753498623181,0.53346,3748.2,3748.1,11.954]
[1753498623378,0.53346,3748.2,3748.0,0.53348]
[1753498623576,2.16658861,3748.5,3747.8,3.2078]
[1753498623577,0.53345,3748.3,3748.1,12.48046]
[1753498623779,0.53346,3748.2,3748.1,11.947]
[1753498624385,0.53346,3748.2,3748.1,11.932]
[1753498624587,3.50013861,3748.5,3747.8,3.74131]
[1753498624780,0.53346,3748.2,3748.1,11.924]
[1753498625083,0.53349,3748.0,3747.8,3.74131]
[1753498625386,0.72932488,3748.2,3747.8,3.2078]
[1753498625387,0.5335,3747.9,3747.8,3.2078]
[1753498625587,0.5335,3747.9,3747.8,15.1248]
[1753498626691,1.26282488,3747.9,3747.8,3.2078]
[1753498626991,1.26282488,3747.9,3747.8,15.1248]
[1753498627291,0.5335,3747.9,3747.8,15.1248]
[1753498627884,0.5335,3747.9,3747.8,15.1118]
[1753498629381,1.30693498,3747.9,3747.8,15.1118]
[1753498629990,1.30693498,3747.9,3747.8,3.2078]
[1753498630189,0.53351,3747.8,3747.7,23.058]
[1753498630386,1.30694498,3747.8,3747.7,34.935]
[1753498630592,1.30694498,3747.8,3747.7,23.058]
[1753498630793,6.69894498,3747.8,3747.7,34.93]
[1753498631401,6.69894498,3747.8,3747.7,34.927]
[1753498631593,6.69894498,3747.8,3747.7,34.925]
[1753498631793,6.69894498,3747.8,3747.7,23.058]
[1753498631996,0.53361,3747.1,3747.0,3.2078]
[1753498632196,1.30704498,3747.1,3747.0,15.0728]
[1753498632392,1.30704498,3747.1,3747.0,6.9541]
[1753498632593,1.30704498,3747.1,3747.0,18.8191]
[1753498632898,3.39376986,3747.1,3747.0,15.6103]
[1753498633500,3.39376986,3747.1,3747.0,3.7463]
[1753498633998,3.39376986,3747.1,3747.0,15.6033]
[1753498634299,4.27786986,3747.1,3747.0,15.6013]
[1753498635195,4.27786986,3747.1,3747.0,14.2672]
[1753498635497,4.27786986,3747.1,3747.0,14.2642]
[1753498637001,9.66986986,3747.1,3747.0,14.2642]
[1753498637304,9.66986986,3747.1,3747.0,15.5953]
[1753498638698,8.78576986,3747.1,3747.0,15.5953]
[1753498639095,9.66986986,3747.1,3747.0,2.4152]
[1753498639302,14.66986986,3747.1,3747.0,2.4152]
[1753498639495,2.77516,3746.8,3746.7,3.7463]
[1753498639699,4.27791986,3746.8,3746.7,2.4152]
[1753498640102,9.66991986,3746.8,3746.7,2.4152]
[1753498640304,0.5337,3746.5,3746.4,1.3311]
[1753498640596,10.33125986,3746.5,3746.4,16.5436]
[1753498640802,10.33125986,3746.5,3746.4,4.7336]
[1753498641005,10.33125986,3746.5,3746.4,2.4946]
[1753498641405,2.795,3745.9,3745.8,2.71105196]
[1753498641600,4.83154986,3745.9,3745.8,2.71105196]
[1753498641807,12.51554986,3745.9,3745.8,0.19755196]
[1753498642100,8.72079,3745.9,3745.8,4.93115196]
[1753498642296,5.92579,3745.9,3745.8,6.45735196]
[1753498643711,5.92579,3745.9,3745.8,18.25135196]
[1753498645302,5.92579,3745.9,3745.8,18.24135196]
[1753498646011,9.45011488,3745.9,3745.8,18.23435196]
[1753498646309,10.85801488,3745.9,3745.8,6.45735196]
[1753498646503,10.85801488,3745.9,3745.8,18.23435196]
[1753498646704,10.85801488,3745.9,3745.8,18.23135196]
[1753498647711,10.85801488,3745.9,3745.8,18.23035196]
[1753498647908,11.74211488,3745.9,3745.8,5.12625196]
[1753498648609,20.22098642,3745.9,3745.8,0.19755196]
[1753498648909,20.99065999,3745.9,3745.8,0.19755196]
[1753498652311,20.99030592,3745.9,3745.8,0.19755196]
[1753498653921,3.09211,3745.0,3744.9,3.41417]
[1753498654122,7.08385438,3745.0,3744.9,5.67957]
[1753498654320,10.29165438,3745.0,3744.9,5.67957]
[1753498654819,1.49864438,3745.0,3744.9,5.67957]
[1753498655015,2.03255438,3745.0,3744.9,5.67957]
[1753498656216,2.95605438,3745.0,3744.9,5.67957]
[1753498656417,4.34665438,3745.0,3744.9,5.67957]
[1753498659219,12.47585438,3745.0,3744.9,5.67957]
[1753498659525,11.37335438,3745.0,3744.9,5.67957]
[1753498660627,12.47585438,3745.0,3744.9,5.67957]
[1753498663227,9.73865438,3745.0,3744.9,5.67957]
[1753498663725,13.39045438,3745.0,3744.9,5.67957]
[1753498664515,12.47585438,3745.0,3744.9,5.67957]
[1753498664922,13.39045438,3745.0,3744.9,3.41417]
[1753498665627,14.82771811,3745.0,3744.9,3.41417]
[1753498665823,6.4999,3744.4,3744.3,1.47070795]
[1753498666129,12.63975366,3744.4,3744.3,3.49380795]
[1753498666830,11.20634438,3744.4,3744.3,3.49380795]
[1753498667127,12.63975366,3744.4,3744.3,3.49380795]
[1753498667817,12.63975366,3744.4,3744.3,4.91090795]
[1753498668229,11.20634438,3744.4,3744.3,4.91090795]
[1753498668528,11.20634438,3744.4,3744.3,5.80060795]
[1753498669623,11.20634438,3744.4,3744.3,4.91090795]
[1753498670327,11.20634438,3744.4,3744.3,5.80060795]
[1753498670328,1.3033195,3744.4,3744.3,5.80060795]
[1753498670519,2.03264438,3744.4,3744.3,5.80060795]